Body name,Body,Service Label,Service Code,Service division Label,Service division code,Organisational unit,Expenditure Category,Expenditure Code,CIPFA detailed expenditure type,CIPFA detailed expenditure code,Narrative,Date,Transaction number,Net Amount,Capital and revenue,Supplier Name
Gosport Borough Council,,SERVICE UNITS ADMIN COSTS,H4-6,,,,DIRECT EMPLOYEE EXPENSES,,,,,12/04/18,100685,531.90,REVENUE,Venn Group Limited
Gosport Borough Council,,SERVICE UNITS ADMIN COSTS,H4-6,,,,DIRECT EMPLOYEE EXPENSES,,,,,05/04/18,100514,656.01,REVENUE,Venn Group Limited
Gosport Borough Council,,SERVICE UNITS ADMIN COSTS,H4-6,,,,DIRECT EMPLOYEE EXPENSES,,,,,12/04/18,100686,"1,013.79",REVENUE,James Andrews Recruitment Solutions Limited
Gosport Borough Council,,SERVICE UNITS ADMIN COSTS,H4-6,,,,DIRECT EMPLOYEE EXPENSES,,,,,19/04/18,100697,"1,040.87",REVENUE,James Andrews Recruitment Solutions Limited
Gosport Borough Council,,SERVICE UNITS ADMIN COSTS,H4-6,,,,DIRECT EMPLOYEE EXPENSES,,,,,12/04/18,100687,"1,202.38",REVENUE,James Andrews Recruitment Solutions Limited
Gosport Borough Council,,SERVICE UNITS ADMIN COSTS,H4-6,,,,DIRECT EMPLOYEE EXPENSES,,,,,19/04/18,100699,"1,209.99",REVENUE,James Andrews Recruitment Solutions Limited
Gosport Borough Council,,SERVICE UNITS ADMIN COSTS,H4-6,,,,DIRECT EMPLOYEE EXPENSES,,,,,05/04/18,100490,"1,217.60",REVENUE,James Andrews Recruitment Solutions Limited
Gosport Borough Council,,SERVICE UNITS ADMIN COSTS,H4-6,,,,DIRECT EMPLOYEE EXPENSES,,,,,05/04/18,100491,"1,369.80",REVENUE,James Andrews Recruitment Solutions Limited
Gosport Borough Council,,SERVICE UNITS ADMIN COSTS,H4-6,,,,DIRECT EMPLOYEE EXPENSES,,,,,26/04/18,101047,576.46,REVENUE,Venn Group Limited
Gosport Borough Council,,SERVICE UNITS ADMIN COSTS,H4-6,,,,DIRECT EMPLOYEE EXPENSES,,,,,26/04/18,101049,577.28,REVENUE,Venn Group Limited
Gosport Borough Council,,SERVICE UNITS ADMIN COSTS,H4-6,,,,DIRECT EMPLOYEE EXPENSES,,,,,12/04/18,100682,692.29,REVENUE,Venn Group Limited
Gosport Borough Council,,SERVICE UNITS ADMIN COSTS,H4-6,,,,DIRECT EMPLOYEE EXPENSES,,,,,12/04/18,100681,720.17,REVENUE,Venn Group Limited
Gosport Borough Council,,SERVICE UNITS ADMIN COSTS,H4-6,,,,DIRECT EMPLOYEE EXPENSES,,,,,26/04/18,100678,625.10,REVENUE,Venn Group Limited
Gosport Borough Council,,SERVICE UNITS ADMIN COSTS,H4-6,,,,DIRECT EMPLOYEE EXPENSES,,,,,12/04/18,100462,811.30,REVENUE,Venn Group Limited
Gosport Borough Council,,SERVICE UNITS ADMIN COSTS,H4-6,,,,DIRECT EMPLOYEE EXPENSES,,,,,26/04/18,100792,811.30,REVENUE,Venn Group Limited
Gosport Borough Council,,SERVICE UNITS ADMIN COSTS,H4-6,,,,DIRECT EMPLOYEE EXPENSES,,,,,12/04/18,100458,824.60,REVENUE,Venn Group Limited
Gosport Borough Council,,SERVICE UNITS ADMIN COSTS,H4-6,,,,DIRECT EMPLOYEE EXPENSES,,,,,26/04/18,101003,950.95,REVENUE,Venn Group Limited
Gosport Borough Council,,SERVICE UNITS ADMIN COSTS,H4-6,,,,DIRECT EMPLOYEE EXPENSES,,,,,26/04/18,101040,659.86,REVENUE,Hays Recruitment Plc
Gosport Borough Council,,SERVICE UNITS ADMIN COSTS,H4-6,,,,DIRECT EMPLOYEE EXPENSES,,,,,12/04/18,100676,989.78,REVENUE,Hays Recruitment Plc
Gosport Borough Council,,SERVICE UNITS ADMIN COSTS,H4-6,,,,DIRECT EMPLOYEE EXPENSES,,,,,19/04/18,100844,989.79,REVENUE,Hays Recruitment Plc
Gosport Borough Council,,SERVICE UNITS ADMIN COSTS,H4-6,,,,DIRECT EMPLOYEE EXPENSES,,,,,19/04/18,100882,"1,090.13",REVENUE,Hays Recruitment Plc
Gosport Borough Council,,SERVICE UNITS ADMIN COSTS,H4-6,,,,DIRECT EMPLOYEE EXPENSES,,,,,19/04/18,100881,"1,319.72",REVENUE,Hays Recruitment Plc
Gosport Borough Council,,SERVICE UNITS ADMIN COSTS,H4-6,,,,DIRECT EMPLOYEE EXPENSES,,,,,12/04/18,100583,"5,120.00",REVENUE,Portsmouth City Council
Gosport Borough Council,,SERVICE UNITS ADMIN COSTS,H4-6,,,,DIRECT EMPLOYEE EXPENSES,,,,,12/04/18,100444,"1,162.55",REVENUE,Portsmouth City Council
Gosport Borough Council,,SERVICE UNITS ADMIN COSTS,H4-6,,,,DIRECT EMPLOYEE EXPENSES,,,,,12/04/18,100666,999.00,REVENUE,Eden Brown Synergy (Hcig)
Gosport Borough Council,,SERVICE UNITS ADMIN COSTS,H4-6,,,,DIRECT EMPLOYEE EXPENSES,,,,,26/04/18,100956,"1,048.95",REVENUE,Eden Brown Synergy (Hcig)
Gosport Borough Council,,SERVICE UNITS ADMIN COSTS,H4-6,,,,DIRECT EMPLOYEE EXPENSES,,,,,19/04/18,100862,533.25,REVENUE,Eden Brown Synergy (Hcig)
Gosport Borough Council,,SERVICE UNITS ADMIN COSTS,H4-6,,,,DIRECT EMPLOYEE EXPENSES,,,,,05/04/18,100499,884.25,REVENUE,Eden Brown Synergy (Hcig)
Gosport Borough Council,,SERVICE UNITS ADMIN COSTS,H4-6,,,,DIRECT EMPLOYEE EXPENSES,,,,,12/04/18,100665,"1,082.70",REVENUE,Morgan Hunt Uk Limited
Gosport Borough Council,,SERVICE UNITS ADMIN COSTS,H4-6,,,,DIRECT EMPLOYEE EXPENSES,,,,,05/04/18,100498,"1,082.99",REVENUE,Morgan Hunt Uk Limited
Gosport Borough Council,,SERVICE UNITS ADMIN COSTS,H4-6,,,,DIRECT EMPLOYEE EXPENSES,,,,,19/04/18,100861,"1,115.55",REVENUE,Morgan Hunt Uk Limited
Gosport Borough Council,,SERVICE UNITS ADMIN COSTS,H4-6,,,,DIRECT EMPLOYEE EXPENSES,,,,,05/04/18,100209,"3,868.75",REVENUE,Civica (Uk) Limited
Gosport Borough Council,,HRA,H4-7,,,,DIRECT EMPLOYEE EXPENSES,,,,,05/04/18,100482,"2,381.29",REVENUE,Manpower Uk Limited
Gosport Borough Council,,HRA,H4-7,,,,DIRECT EMPLOYEE EXPENSES,,,,,05/04/18,100483,"2,852.19",REVENUE,Manpower Uk Limited
Gosport Borough Council,,HRA,H4-7,,,,DIRECT EMPLOYEE EXPENSES,,,,,26/04/18,101048,"3,784.86",REVENUE,Manpower Uk Limited
Gosport Borough Council,,HRA,H4-7,,,,DIRECT EMPLOYEE EXPENSES,,,,,12/04/18,100684,"4,469.85",REVENUE,Manpower Uk Limited
Gosport Borough Council,,CORPORATE AND DEMOCRATIC CORE,H4-4,,,,DIRECT EMPLOYEE EXPENSES,,,,,12/04/18,100660,"25,543.00",REVENUE,Portsmouth City Council
Gosport Borough Council,,CORPORATE AND DEMOCRATIC CORE,H4-4,,,,DIRECT EMPLOYEE EXPENSES,,,,,12/04/18,100661,"30,581.00",REVENUE,Portsmouth City Council
Gosport Borough Council,,SERVICE UNITS ADMIN COSTS,H4-6,,,,DIRECT EMPLOYEE EXPENSES,,,,,19/04/18,100827,"-7,500.00",REVENUE,Portsmouth City Council
Gosport Borough Council,,SERVICE UNITS ADMIN COSTS,H4-6,,,,DIRECT EMPLOYEE EXPENSES,,,,,12/04/18,100640,"8,738.75",REVENUE,Portsmouth City Council
Gosport Borough Council,,SERVICE UNITS ADMIN COSTS,H4-6,,,,DIRECT EMPLOYEE EXPENSES,,,,,19/04/18,100867,"12,217.00",REVENUE,Portsmouth City Council
Gosport Borough Council,,SERVICE UNITS ADMIN COSTS,H4-6,,,,DIRECT EMPLOYEE EXPENSES,,,,,19/04/18,100639,"3,733.75",REVENUE,Portsmouth City Council
Gosport Borough Council,,SERVICE UNITS ADMIN COSTS,H4-6,,,,DIRECT EMPLOYEE EXPENSES,,,,,19/04/18,100828,"-1,826.70",REVENUE,Portsmouth City Council
Gosport Borough Council,,SERVICE UNITS ADMIN COSTS,H4-6,,,,DIRECT EMPLOYEE EXPENSES,,,,,19/04/18,100860,"-1,925.30",REVENUE,Portsmouth City Council
Gosport Borough Council,,MIRS,H4-9,,,,DIRECT EMPLOYEE EXPENSES,,,,,12/04/18,100660,"8,406.00",CAPITAL,Portsmouth City Council
Gosport Borough Council,,MIRS,H4-9,,,,DIRECT EMPLOYEE EXPENSES,,,,,12/04/18,100661,"4,432.00",CAPITAL,Portsmouth City Council
Gosport Borough Council,,MIRS,H4-9,,,,DIRECT EMPLOYEE EXPENSES,,,,,12/04/18,100661,"8,136.00",CAPITAL,Portsmouth City Council
Gosport Borough Council,,MIRS,H4-9,,,,DIRECT EMPLOYEE EXPENSES,,,,,12/04/18,100661,921.00,CAPITAL,Portsmouth City Council
Gosport Borough Council,,MIRS,H4-9,,,,DIRECT EMPLOYEE EXPENSES,,,,,12/04/18,100661,"26,513.00",CAPITAL,Portsmouth City Council
Gosport Borough Council,,HRA,H4-7,,,,DIRECT EMPLOYEE EXPENSES,,,,,12/04/18,100660,"12,500.00",REVENUE,Portsmouth City Council
Gosport Borough Council,,HRA,H4-7,,,,DIRECT EMPLOYEE EXPENSES,,,,,12/04/18,100661,"12,500.00",REVENUE,Portsmouth City Council
Gosport Borough Council,,SERVICE UNITS ADMIN COSTS,H4-6,,,,DIRECT EMPLOYEE EXPENSES,,,,,19/04/18,100859,830.61,REVENUE,Portsmouth City Council
Gosport Borough Council,,SERVICE UNITS ADMIN COSTS,H4-6,,,,DIRECT EMPLOYEE EXPENSES,,,,,19/04/18,100859,"1,678.07",REVENUE,Portsmouth City Council
Gosport Borough Council,,SERVICE UNITS ADMIN COSTS,H4-6,,,,DIRECT EMPLOYEE EXPENSES,,,,,19/04/18,100859,610.33,REVENUE,Portsmouth City Council
Gosport Borough Council,,SERVICE UNITS ADMIN COSTS,H4-6,,,,DIRECT EMPLOYEE EXPENSES,,,,,19/04/18,100859,"1,320.43",REVENUE,Portsmouth City Council
Gosport Borough Council,,SERVICE UNITS ADMIN COSTS,H4-6,,,,DIRECT EMPLOYEE EXPENSES,,,,,19/04/18,100859,"1,208.99",REVENUE,Portsmouth City Council
Gosport Borough Council,,SERVICE UNITS ADMIN COSTS,H4-6,,,,DIRECT EMPLOYEE EXPENSES,,,,,19/04/18,100859,830.61,REVENUE,Portsmouth City Council
Gosport Borough Council,,MIRS,H4-9,,,,DIRECT EMPLOYEE EXPENSES,,,,,12/04/18,100660,"5,496.00",CAPITAL,Portsmouth City Council
Gosport Borough Council,,MIRS,H4-9,,,,DIRECT EMPLOYEE EXPENSES,,,,,12/04/18,100660,"20,940.00",CAPITAL,Portsmouth City Council
Gosport Borough Council,,SERVICE UNITS ADMIN COSTS,H4-6,,,,INDIRECT EMPLOYEE EXPENSES,,,,,12/04/18,99969,518.00,REVENUE,Apse Training
Gosport Borough Council,,SERVICE UNITS ADMIN COSTS,H4-6,,,,INDIRECT EMPLOYEE EXPENSES,,,,,05/04/18,100497,"3,250.00",REVENUE,Airey Consultancy Services Limited  (Acs)
Gosport Borough Council,,CULTURAL AND RELATED SERVICES,H4-11,,,,REPAIRS AND MAINT OF BUILDINGS,,,,,26/04/18,101028,748.03,REVENUE,"Lucas, Windebank & Mcnally  (Builders)"
Gosport Borough Council,,HRA,H4-7,,,,REPAIRS AND MAINT OF BUILDINGS,,,,,05/04/18,100527,"37,372.38",REVENUE,Novus Property Solutions Limited
Gosport Borough Council,,HRA,H4-7,,,,REPAIRS AND MAINT OF BUILDINGS,,,,,19/04/18,100702,"3,915.00",REVENUE,Kier Building Maintenance
Gosport Borough Council,,HRA,H4-7,,,,REPAIRS AND MAINT OF BUILDINGS,,,,,12/04/18,100585,"1,825.00",REVENUE,Gs Building Services Limited
Gosport Borough Council,,CULTURAL AND RELATED SERVICES,H4-11,,,,REPAIRS AND MAINT OF BUILDINGS,,,,,12/04/18,100602,780.00,REVENUE,Gs Building Services Limited
Gosport Borough Council,,CULTURAL AND RELATED SERVICES,H4-11,,,,REPAIRS AND MAINT OF BUILDINGS,,,,,26/04/18,101058,"2,384.42",REVENUE,Hampshire County Council
Gosport Borough Council,,HIGHWAYS ROADS AND TRANSPORT,H4-2,,,,REPAIRS AND MAINT OF BUILDINGS,,,,,26/04/18,101058,"9,655.45",REVENUE,Hampshire County Council
Gosport Borough Council,,HRA,H4-7,,,,REPAIRS AND MAINT OF BUILDINGS,,,,,26/04/18,101058,"1,736.80",REVENUE,Hampshire County Council
Gosport Borough Council,,CULTURAL AND RELATED SERVICES,H4-11,,,,REPAIRS AND MAINT OF BUILDINGS,,,,,12/04/18,100637,"15,250.00",REVENUE,Gs Building Services Limited
Gosport Borough Council,,CULTURAL AND RELATED SERVICES,H4-11,,,,REPAIRS AND MAINT OF BUILDINGS,,,,,12/04/18,100448,"9,032.43",REVENUE,Sutcliffe Play Limited
Gosport Borough Council,,CULTURAL AND RELATED SERVICES,H4-11,,,,REPAIRS AND MAINT OF BUILDINGS,,,,,12/04/18,100449,"11,499.44",REVENUE,Sutcliffe Play Limited
Gosport Borough Council,,HIGHWAYS ROADS AND TRANSPORT,H4-2,,,,REPAIRS AND MAINT OF BUILDINGS,,,,,12/04/18,100636,"1,872.00",REVENUE,Gs Building Services Limited
Gosport Borough Council,,HIGHWAYS ROADS AND TRANSPORT,H4-2,,,,REPAIRS AND MAINT OF BUILDINGS,,,,,26/04/18,101019,"2,250.00",REVENUE,Gs Building Services Limited
Gosport Borough Council,,HIGHWAYS ROADS AND TRANSPORT,H4-2,,,,ENERGY COSTS,,,,,19/04/18,100823,701.01,REVENUE,Npower
Gosport Borough Council,,HOUSING SERVICES,H4-3,,,,WATER SERVICES,,,,,26/04/18,100955,"4,035.09",REVENUE,Business Stream
Gosport Borough Council,,HIGHWAYS ROADS AND TRANSPORT,H4-2,,,,CLEANING AND DOMESTIC SUPPLIES,,,,,12/04/18,100635,558.75,REVENUE,Dall Cleaning Services
Gosport Borough Council,,HRA,H4-7,,,,CLEANING AND DOMESTIC SUPPLIES,,,,,12/04/18,100698,556.96,REVENUE,1st Choice H. L. C. & M. Limited
Gosport Borough Council,,HRA,H4-7,,,,CLEANING AND DOMESTIC SUPPLIES,,,,,05/04/18,100484,500.00,REVENUE,Urbaser Limited
Gosport Borough Council,,HRA,H4-7,,,,CLEANING AND DOMESTIC SUPPLIES,,,,,12/04/18,100249,480.00,REVENUE,Rubbish Clearance & Waste Removal Limited
Gosport Borough Council,,CULTURAL AND RELATED SERVICES,H4-11,,,,GROUNDS MAINTENANCE COSTS,,,,,12/04/18,100464,"2,480.00",REVENUE,Gs Building Services Limited
Gosport Borough Council,,CULTURAL AND RELATED SERVICES,H4-11,,,,GROUNDS MAINTENANCE COSTS,,,,,12/04/18,100465,"1,378.00",REVENUE,Playsafe Playgrounds Limited
Gosport Borough Council,,ENV AND REGULATORY SERVICES,H4-12,,,,GROUNDS MAINTENANCE COSTS,,,,,19/04/18,100797,"1,680.00",REVENUE,South Coast Tree Surgeons
Gosport Borough Council,,CULTURAL AND RELATED SERVICES,H4-11,,,,GROUNDS MAINTENANCE COSTS,,,,,19/04/18,100797,180.00,REVENUE,South Coast Tree Surgeons
Gosport Borough Council,,HRA,H4-7,,,,GROUNDS MAINTENANCE COSTS,,,,,19/04/18,100797,"1,220.00",REVENUE,South Coast Tree Surgeons
Gosport Borough Council,,HIGHWAYS ROADS AND TRANSPORT,H4-2,,,,GROUNDS MAINTENANCE COSTS,,,,,26/04/18,101025,948.00,REVENUE,Gs Building Services Limited
Gosport Borough Council,,CULTURAL AND RELATED SERVICES,H4-11,,,,GROUNDS MAINTENANCE COSTS,,,,,12/04/18,100466,"3,285.98",REVENUE,Earlcoate Construction & Plant Hire Limited
Gosport Borough Council,,SERVICE UNITS ADMIN COSTS,H4-6,,,,CAPITAL - PREMISES COSTS,,,,,19/04/18,100776,"1,950.00",REVENUE,Vohkus Limited
Gosport Borough Council,,MIRS,H4-9,,,,CAPITAL - PREMISES COSTS,,,,,26/04/18,100772,"2,635.00",CAPITAL,Gs Building Services Limited
Gosport Borough Council,,MIRS,H4-9,,,,CAPITAL - PREMISES COSTS,,,,,05/04/18,100512,"12,652.79",CAPITAL,Novus Property Solutions Limited
Gosport Borough Council,,MIRS,H4-9,,,,CAPITAL - PREMISES COSTS,,,,,19/04/18,100855,"48,383.94",CAPITAL,Drew Smith Limited
Gosport Borough Council,,MIRS,H4-9,,,,CAPITAL - PREMISES COSTS,,,,,19/04/18,100826,"4,000.00",CAPITAL,Hm Revenue & Customs
Gosport Borough Council,,MIRS,H4-9,,,,CAPITAL - PREMISES COSTS,,,,,25/04/18,7106,"130,077.78",CAPITAL,Nat West
Gosport Borough Council,,MIRS,H4-9,,,,CAPITAL - PREMISES COSTS,,,,,12/04/18,100659,"160,000.00",CAPITAL,Portsmouth City Council
Gosport Borough Council,,MIRS,H4-9,,,,CAPITAL - PREMISES COSTS,,,,,26/04/18,101036,957.50,CAPITAL,Parker Torrington Limited
Gosport Borough Council,,MIRS,H4-9,,,,CAPITAL - PREMISES COSTS,,,,,26/04/18,101037,"1,170.00",CAPITAL,Parker Torrington Limited
Gosport Borough Council,,MIRS,H4-9,,,,CAPITAL - PREMISES COSTS,,,,,26/04/18,101057,"1,011.52",CAPITAL,Kier Building Maintenance
Gosport Borough Council,,MIRS,H4-9,,,,CAPITAL - PREMISES COSTS,,,,,12/04/18,100457,"7,346.00",CAPITAL,"Lucas, Windebank & Mcnally  (Builders)"
Gosport Borough Council,,MIRS,H4-9,,,,CAPITAL - PREMISES COSTS,,,,,26/04/18,101057,"3,891.48",CAPITAL,Kier Building Maintenance
Gosport Borough Council,,MIRS,H4-9,,,,CAPITAL - PREMISES COSTS,,,,,12/04/18,100647,745.00,CAPITAL,Tensor Plc
Gosport Borough Council,,MIRS,H4-9,,,,CAPITAL - PREMISES COSTS,,,,,12/04/18,100452,"3,950.00",CAPITAL,Idox Software Limited
Gosport Borough Council,,MIRS,H4-9,,,,CAPITAL - PREMISES COSTS,,,,,26/04/18,101031,"1,100.00",CAPITAL,New-Air (Southern) Ltd
Gosport Borough Council,,MIRS,H4-9,,,,CAPITAL - PREMISES COSTS,,,,,12/04/18,99598,875.00,CAPITAL,Advanced Business Solutions Ltd
Gosport Borough Council,,MIRS,H4-9,,,,CAPITAL - PREMISES COSTS,,,,,12/04/18,100447,"8,000.00",CAPITAL,Idox Software Limited
Gosport Borough Council,,MIRS,H4-9,,,,CAPITAL - PREMISES COSTS,,,,,12/04/18,100451,"44,660.00",CAPITAL,Civica (Uk) Limited
Gosport Borough Council,,CORPORATE AND DEMOCRATIC CORE,H4-4,,,,CONTRACT HIRE & OPER LEASES,,,,,04/04/18,7067,489.69,REVENUE,Arval - Bnp Paribas Group
Gosport Borough Council,,SERVICE UNITS ADMIN COSTS,H4-6,,,,PUBLIC TRANSPORT,,,,,25/04/18,7101,64.00,REVENUE,Rsp Travel Warrants
Gosport Borough Council,,SERVICE UNITS ADMIN COSTS,H4-6,,,,PUBLIC TRANSPORT,,,,,25/04/18,7101,187.90,REVENUE,Rsp Travel Warrants
Gosport Borough Council,,HRA,H4-7,,,,"EQUIP, FURNITURE AND MATERIALS",,,,,25/04/18,7100,774.68,REVENUE,The Alarming Company Limited
Gosport Borough Council,,HRA,H4-7,,,,"EQUIP, FURNITURE AND MATERIALS",,,,,05/04/18,100479,"1,049.01",REVENUE,The Alarming Company Limited
Gosport Borough Council,,CULTURAL AND RELATED SERVICES,H4-11,,,,"EQUIP, FURNITURE AND MATERIALS",,,,,12/04/18,100599,640.52,REVENUE,Topturf Irrigation
Gosport Borough Council,,CULTURAL AND RELATED SERVICES,H4-11,,,,"EQUIP, FURNITURE AND MATERIALS",,,,,12/04/18,100594,992.00,REVENUE,Topturf Irrigation
Gosport Borough Council,,CULTURAL AND RELATED SERVICES,H4-11,,,,"EQUIP, FURNITURE AND MATERIALS",,,,,05/04/18,99998,442.41,REVENUE,Topturf Irrigation
Gosport Borough Council,,HIGHWAYS ROADS AND TRANSPORT,H4-2,,,,"EQUIP, FURNITURE AND MATERIALS",,,,,26/04/18,100995,"3,400.00",REVENUE,Cale Access Uk Limited
Gosport Borough Council,,CULTURAL AND RELATED SERVICES,H4-11,,,,"EQUIP, FURNITURE AND MATERIALS",,,,,12/04/18,100600,422.15,REVENUE,Gs Building Services Limited
Gosport Borough Council,,CULTURAL AND RELATED SERVICES,H4-11,,,,"EQUIP, FURNITURE AND MATERIALS",,,,,12/04/18,100581,829.15,REVENUE,Aquajoy Water Gardens Limited
Gosport Borough Council,,SERVICE UNITS ADMIN COSTS,H4-6,,,,"EQUIP, FURNITURE AND MATERIALS",,,,,05/04/18,100494,"1,430.88",REVENUE,The Alarming Company Limited
Gosport Borough Council,,SERVICE UNITS ADMIN COSTS,H4-6,,,,"EQUIP, FURNITURE AND MATERIALS",,,,,12/04/18,100644,"10,560.20",REVENUE,Capita Business Services Limited
Gosport Borough Council,,SERVICE UNITS ADMIN COSTS,H4-6,,,,"EQUIP, FURNITURE AND MATERIALS",,,,,26/04/18,100605,"2,276.20",REVENUE,Ace Office Environment Limited
Gosport Borough Council,,HRA,H4-7,,,,"EQUIP, FURNITURE AND MATERIALS",,,,,12/04/18,100595,"1,105.30",REVENUE,Waterlooville Beds Ltd
Gosport Borough Council,,CULTURAL AND RELATED SERVICES,H4-11,,,,"EQUIP, FURNITURE AND MATERIALS",,,,,19/04/18,100806,443.15,REVENUE,Pollet Pool Group
Gosport Borough Council,,HRA,H4-7,,,,"EQUIP, FURNITURE AND MATERIALS",,,,,19/04/18,100794,136.78,REVENUE,Aadvark Supplies Limited
Gosport Borough Council,,SERVICE UNITS ADMIN COSTS,H4-6,,,,"CLOTHES, UNIFORM AND LAUNDRY",,,,,12/04/18,100460,267.40,REVENUE,Meltemi Limited
Gosport Borough Council,,CENTRAL SERVICES TO THE PUBLIC,H4-5,,,,"PRINTING, STAT & OFFICE EXP",,,,,19/04/18,100817,"5,373.07",REVENUE,Mail & Print Services Uk Ltd (Mps)
Gosport Borough Council,,SERVICE UNITS ADMIN COSTS,H4-6,,,,"PRINTING, STAT & OFFICE EXP",,,,,12/04/18,100663,592.50,REVENUE,Ricoh Uk Ltd
Gosport Borough Council,,SERVICE UNITS ADMIN COSTS,H4-6,,,,"PRINTING, STAT & OFFICE EXP",,,,,12/04/18,100662,"2,277.12",REVENUE,Ricoh Uk Ltd
Gosport Borough Council,,SERVICE UNITS ADMIN COSTS,H4-6,,,,"PRINTING, STAT & OFFICE EXP",,,,,26/04/18,100983,255.80,REVENUE,Ace Office Environment Limited
Gosport Borough Council,,SERVICE UNITS ADMIN COSTS,H4-6,,,,"PRINTING, STAT & OFFICE EXP",,,,,19/04/18,100876,285.00,REVENUE,Lexisnexis  (Reed Elsevier Uk) Limited
Gosport Borough Council,,SERVICE UNITS ADMIN COSTS,H4-6,,,,"PRINTING, STAT & OFFICE EXP",,,,,19/04/18,100846,"3,973.80",REVENUE,Thomson Reuters (Uk) Limited
Gosport Borough Council,,CORPORATE AND DEMOCRATIC CORE,H4-4,,,,SERVICES,,,,,26/04/18,100969,"17,436.00",REVENUE,Ernst & Young Llp
Gosport Borough Council,,SERVICE UNITS ADMIN COSTS,H4-6,,,,SERVICES,,,,,19/04/18,100886,621.00,REVENUE,Portsmouth City Council
Gosport Borough Council,,MIRS,H4-9,,,,SERVICES,,,,,19/04/18,100858,"8,269.27",CAPITAL,Atkins Limited
Gosport Borough Council,,HRA,H4-7,,,,SERVICES,,,,,26/04/18,101045,"1,345.00",REVENUE,Certsure Llp
Gosport Borough Council,,OTHER OPERATING EXPENDITURE,H4-81,,,,SERVICES,,,,,19/04/18,100880,"1,800.00",REVENUE,Mills & Reeve Llp
Gosport Borough Council,,SERVICE UNITS ADMIN COSTS,H4-6,,,,SERVICES,,,,,19/04/18,100857,"1,104.90",REVENUE,Portsmouth City Council
Gosport Borough Council,,MIRS,H4-9,,,,SERVICES,,,,,05/04/18,100481,"4,094.00",CAPITAL,Bircham Dyson Bell Llp
Gosport Borough Council,,MIRS,H4-9,,,,SERVICES,,,,,05/04/18,100474,"1,216.36",CAPITAL,Veale Wasbrough Vizards Llp
Gosport Borough Council,,MIRS,H4-9,,,,SERVICES,,,,,05/04/18,100500,"8,234.36",CAPITAL,Mills & Reeve Llp
Gosport Borough Council,,ENV AND REGULATORY SERVICES,H4-12,,,,SERVICES,,,,,12/04/18,100658,"1,497.50",REVENUE,Portsmouth City Council
Gosport Borough Council,,CULTURAL AND RELATED SERVICES,H4-11,,,,SERVICES,,,,,19/04/18,100832,988.74,REVENUE,Crown Mews (Gosport) Management Co. Ltd
Gosport Borough Council,,CORPORATE AND DEMOCRATIC CORE,H4-4,,,,SERVICES,,,,,19/04/18,100889,491.19,REVENUE,Portsmouth City Council
Gosport Borough Council,,CORPORATE AND DEMOCRATIC CORE,H4-4,,,,SERVICES,,,,,19/04/18,100834,798.12,REVENUE,The Copyright Licensing Agency Ltd (Cla)
Gosport Borough Council,,CORPORATE AND DEMOCRATIC CORE,H4-4,,,,SERVICES,,,,,04/04/18,7072,"4,117.14",REVENUE,Nat West
Gosport Borough Council,,SERVICE UNITS ADMIN COSTS,H4-6,,,,SERVICES,,,,,25/04/18,7095,"3,768.56",REVENUE,Capita Business Services Limited
Gosport Borough Council,,ENV AND REGULATORY SERVICES,H4-12,,,,COMMUNICATIONS AND COMPUTING,,,,,19/04/18,100801,"52,725.20",REVENUE,Bt Redcare  (Bt Group)
Gosport Borough Council,,CENTRAL SERVICES TO THE PUBLIC,H4-5,,,,COMMUNICATIONS AND COMPUTING,,,,,12/04/18,100695,700.00,REVENUE,Showcase Outdoor Limited
Gosport Borough Council,,MIRS,H4-9,,,,COMMUNICATIONS AND COMPUTING,,,,,12/04/18,100643,"2,612.50",CAPITAL,Advanced Business Solutions Ltd
Gosport Borough Council,,SERVICE UNITS ADMIN COSTS,H4-6,,,,COMMUNICATIONS AND COMPUTING,,,,,12/04/18,100461,"3,125.00",REVENUE,Altinet Limited
Gosport Borough Council,,SERVICE UNITS ADMIN COSTS,H4-6,,,,COMMUNICATIONS AND COMPUTING,,,,,12/04/18,100575,"5,374.27",REVENUE,Covalent Software Limited
Gosport Borough Council,,SERVICE UNITS ADMIN COSTS,H4-6,,,,COMMUNICATIONS AND COMPUTING,,,,,05/04/18,100495,"6,075.00",REVENUE,Mimecast Services Limited
Gosport Borough Council,,SERVICE UNITS ADMIN COSTS,H4-6,,,,COMMUNICATIONS AND COMPUTING,,,,,19/04/18,100829,"8,928.00",REVENUE,Status Computers
Gosport Borough Council,,SERVICE UNITS ADMIN COSTS,H4-6,,,,COMMUNICATIONS AND COMPUTING,,,,,05/04/18,100496,"10,772.96",REVENUE,Xpress Software Solutions Ltd
Gosport Borough Council,,HRA,H4-7,,,,COMMUNICATIONS AND COMPUTING,,,,,12/04/18,100692,"39,284.00",REVENUE,Capita Business Services Limited
Gosport Borough Council,,CENTRAL SERVICES TO THE PUBLIC,H4-5,,,,COMMUNICATIONS AND COMPUTING,,,,,05/04/18,100493,"1,709.74",REVENUE,Sedgemoor District Council
Gosport Borough Council,,SERVICE UNITS ADMIN COSTS,H4-6,,,,COMMUNICATIONS AND COMPUTING,,,,,26/04/18,100954,"27,184.92",REVENUE,Northgate Public Services (Uk) Limited
Gosport Borough Council,,SERVICE UNITS ADMIN COSTS,H4-6,,,,COMMUNICATIONS AND COMPUTING,,,,,26/04/18,100954,"17,733.96",REVENUE,Northgate Public Services (Uk) Limited
Gosport Borough Council,,CORPORATE AND DEMOCRATIC CORE,H4-4,,,,MEMBERS� ALLOWANCES,,,,,19/04/18,100852,540.72,REVENUE,REDACTED
Gosport Borough Council,,CORPORATE AND DEMOCRATIC CORE,H4-4,,,,EXPENSES,,,,,26/04/18,101042,"3,026.50",REVENUE,Zurich Insurance Plc
Gosport Borough Council,,CORPORATE AND DEMOCRATIC CORE,H4-4,,,,EXPENSES,,,,,26/04/18,101043,"5,240.87",REVENUE,Zurich Insurance Plc
Gosport Borough Council,,CULTURAL AND RELATED SERVICES,H4-11,,,,EXPENSES,,,,,26/04/18,101044,365.20,REVENUE,Gallagher Bassett International Limited
Gosport Borough Council,,HRA,H4-7,,,,EXPENSES,,,,,26/04/18,101044,135.00,REVENUE,Gallagher Bassett International Limited
Gosport Borough Council,,HOUSING SERVICES,H4-3,,,,GRANTS AND SUBSCRIPTIONS,,,,,25/04/18,103355,"-1,015.39",REVENUE,David Seymour & Associates
Gosport Borough Council,,HOUSING SERVICES,H4-3,,,,GRANTS AND SUBSCRIPTIONS,,,,,25/04/18,103222,575.00,REVENUE,David Seymour & Associates
Gosport Borough Council,,HOUSING SERVICES,H4-3,,,,GRANTS AND SUBSCRIPTIONS,,,,,25/04/18,103221,575.00,REVENUE,David Seymour & Associates
Gosport Borough Council,,HOUSING SERVICES,H4-3,,,,GRANTS AND SUBSCRIPTIONS,,,,,25/04/18,103236,575.00,REVENUE,David Seymour & Associates
Gosport Borough Council,,HOUSING SERVICES,H4-3,,,,GRANTS AND SUBSCRIPTIONS,,,,,25/04/18,103235,575.00,REVENUE,David Seymour & Associates
Gosport Borough Council,,HOUSING SERVICES,H4-3,,,,GRANTS AND SUBSCRIPTIONS,,,,,25/04/18,103284,575.00,REVENUE,REDACTED
Gosport Borough Council,,HOUSING SERVICES,H4-3,,,,GRANTS AND SUBSCRIPTIONS,,,,,25/04/18,103295,575.00,REVENUE,REDACTED
Gosport Borough Council,,HOUSING SERVICES,H4-3,,,,GRANTS AND SUBSCRIPTIONS,,,,,25/04/18,103311,575.00,REVENUE,REDACTED
Gosport Borough Council,,HOUSING SERVICES,H4-3,,,,GRANTS AND SUBSCRIPTIONS,,,,,25/04/18,103315,575.00,REVENUE,REDACTED
Gosport Borough Council,,HOUSING SERVICES,H4-3,,,,GRANTS AND SUBSCRIPTIONS,,,,,25/04/18,103329,575.00,REVENUE,REDACTED
Gosport Borough Council,,HOUSING SERVICES,H4-3,,,,GRANTS AND SUBSCRIPTIONS,,,,,25/04/18,103213,578.50,REVENUE,REDACTED
Gosport Borough Council,,HOUSING SERVICES,H4-3,,,,GRANTS AND SUBSCRIPTIONS,,,,,25/04/18,103223,595.00,REVENUE,David Seymour & Associates
Gosport Borough Council,,HOUSING SERVICES,H4-3,,,,GRANTS AND SUBSCRIPTIONS,,,,,25/04/18,103273,619.36,REVENUE,REDACTED
Gosport Borough Council,,HOUSING SERVICES,H4-3,,,,GRANTS AND SUBSCRIPTIONS,,,,,25/04/18,103309,621.00,REVENUE,REDACTED
Gosport Borough Council,,HOUSING SERVICES,H4-3,,,,GRANTS AND SUBSCRIPTIONS,,,,,25/04/18,103206,624.99,REVENUE,Stoke Gardens Guest Houses
Gosport Borough Council,,HOUSING SERVICES,H4-3,,,,GRANTS AND SUBSCRIPTIONS,,,,,25/04/18,103208,624.99,REVENUE,REDACTED
Gosport Borough Council,,HOUSING SERVICES,H4-3,,,,GRANTS AND SUBSCRIPTIONS,,,,,25/04/18,103212,624.99,REVENUE,REDACTED
Gosport Borough Council,,HOUSING SERVICES,H4-3,,,,GRANTS AND SUBSCRIPTIONS,,,,,25/04/18,103226,624.99,REVENUE,David Seymour & Associates
Gosport Borough Council,,HOUSING SERVICES,H4-3,,,,GRANTS AND SUBSCRIPTIONS,,,,,25/04/18,103224,624.99,REVENUE,David Seymour & Associates
Gosport Borough Council,,HOUSING SERVICES,H4-3,,,,GRANTS AND SUBSCRIPTIONS,,,,,25/04/18,103200,624.99,REVENUE,David Seymour & Associates
Gosport Borough Council,,HOUSING SERVICES,H4-3,,,,GRANTS AND SUBSCRIPTIONS,,,,,25/04/18,103233,624.99,REVENUE,David Seymour & Associates
Gosport Borough Council,,HOUSING SERVICES,H4-3,,,,GRANTS AND SUBSCRIPTIONS,,,,,25/04/18,103230,624.99,REVENUE,David Seymour & Associates
Gosport Borough Council,,HOUSING SERVICES,H4-3,,,,GRANTS AND SUBSCRIPTIONS,,,,,25/04/18,103227,624.99,REVENUE,David Seymour & Associates
Gosport Borough Council,,HOUSING SERVICES,H4-3,,,,GRANTS AND SUBSCRIPTIONS,,,,,25/04/18,103215,624.99,REVENUE,David Seymour & Associates
Gosport Borough Council,,HOUSING SERVICES,H4-3,,,,GRANTS AND SUBSCRIPTIONS,,,,,25/04/18,103234,624.99,REVENUE,David Seymour & Associates
Gosport Borough Council,,HOUSING SERVICES,H4-3,,,,GRANTS AND SUBSCRIPTIONS,,,,,25/04/18,103231,624.99,REVENUE,David Seymour & Associates
Gosport Borough Council,,HOUSING SERVICES,H4-3,,,,GRANTS AND SUBSCRIPTIONS,,,,,25/04/18,103229,624.99,REVENUE,David Seymour & Associates
Gosport Borough Council,,HOUSING SERVICES,H4-3,,,,GRANTS AND SUBSCRIPTIONS,,,,,25/04/18,103219,624.99,REVENUE,David Seymour & Associates
Gosport Borough Council,,HOUSING SERVICES,H4-3,,,,GRANTS AND SUBSCRIPTIONS,,,,,25/04/18,103238,624.99,REVENUE,REDACTED
Gosport Borough Council,,HOUSING SERVICES,H4-3,,,,GRANTS AND SUBSCRIPTIONS,,,,,25/04/18,103242,624.99,REVENUE,Aspire
Gosport Borough Council,,HOUSING SERVICES,H4-3,,,,GRANTS AND SUBSCRIPTIONS,,,,,25/04/18,103244,624.99,REVENUE,Aspire
Gosport Borough Council,,HOUSING SERVICES,H4-3,,,,GRANTS AND SUBSCRIPTIONS,,,,,25/04/18,103245,624.99,REVENUE,Aspire
Gosport Borough Council,,HOUSING SERVICES,H4-3,,,,GRANTS AND SUBSCRIPTIONS,,,,,25/04/18,103243,624.99,REVENUE,Aspire
Gosport Borough Council,,HOUSING SERVICES,H4-3,,,,GRANTS AND SUBSCRIPTIONS,,,,,25/04/18,103247,624.99,REVENUE,REDACTED
Gosport Borough Council,,HOUSING SERVICES,H4-3,,,,GRANTS AND SUBSCRIPTIONS,,,,,25/04/18,103246,624.99,REVENUE,REDACTED
Gosport Borough Council,,HOUSING SERVICES,H4-3,,,,GRANTS AND SUBSCRIPTIONS,,,,,25/04/18,103249,624.99,REVENUE,REDACTED
Gosport Borough Council,,HOUSING SERVICES,H4-3,,,,GRANTS AND SUBSCRIPTIONS,,,,,25/04/18,103252,624.99,REVENUE,REDACTED
Gosport Borough Council,,HOUSING SERVICES,H4-3,,,,GRANTS AND SUBSCRIPTIONS,,,,,25/04/18,103254,624.99,REVENUE,REDACTED
Gosport Borough Council,,HOUSING SERVICES,H4-3,,,,GRANTS AND SUBSCRIPTIONS,,,,,25/04/18,103255,624.99,REVENUE,Fallaize Properties Ltd
Gosport Borough Council,,HOUSING SERVICES,H4-3,,,,GRANTS AND SUBSCRIPTIONS,,,,,25/04/18,103256,624.99,REVENUE,REDACTED
Gosport Borough Council,,HOUSING SERVICES,H4-3,,,,GRANTS AND SUBSCRIPTIONS,,,,,25/04/18,103263,624.99,REVENUE,REDACTED
Gosport Borough Council,,HOUSING SERVICES,H4-3,,,,GRANTS AND SUBSCRIPTIONS,,,,,25/04/18,103261,624.99,REVENUE,REDACTED
Gosport Borough Council,,HOUSING SERVICES,H4-3,,,,GRANTS AND SUBSCRIPTIONS,,,,,25/04/18,103262,624.99,REVENUE,REDACTED
Gosport Borough Council,,HOUSING SERVICES,H4-3,,,,GRANTS AND SUBSCRIPTIONS,,,,,25/04/18,103259,624.99,REVENUE,REDACTED
Gosport Borough Council,,HOUSING SERVICES,H4-3,,,,GRANTS AND SUBSCRIPTIONS,,,,,25/04/18,103264,624.99,REVENUE,REDACTED
Gosport Borough Council,,HOUSING SERVICES,H4-3,,,,GRANTS AND SUBSCRIPTIONS,,,,,25/04/18,103265,624.99,REVENUE,REDACTED
Gosport Borough Council,,HOUSING SERVICES,H4-3,,,,GRANTS AND SUBSCRIPTIONS,,,,,25/04/18,103268,624.99,REVENUE,REDACTED
Gosport Borough Council,,HOUSING SERVICES,H4-3,,,,GRANTS AND SUBSCRIPTIONS,,,,,25/04/18,103271,624.99,REVENUE,REDACTED
Gosport Borough Council,,HOUSING SERVICES,H4-3,,,,GRANTS AND SUBSCRIPTIONS,,,,,25/04/18,103274,624.99,REVENUE,REDACTED
Gosport Borough Council,,HOUSING SERVICES,H4-3,,,,GRANTS AND SUBSCRIPTIONS,,,,,25/04/18,103276,624.99,REVENUE,REDACTED
Gosport Borough Council,,HOUSING SERVICES,H4-3,,,,GRANTS AND SUBSCRIPTIONS,,,,,25/04/18,103278,624.99,REVENUE,REDACTED
Gosport Borough Council,,HOUSING SERVICES,H4-3,,,,GRANTS AND SUBSCRIPTIONS,,,,,25/04/18,103279,624.99,REVENUE,REDACTED
Gosport Borough Council,,HOUSING SERVICES,H4-3,,,,GRANTS AND SUBSCRIPTIONS,,,,,25/04/18,103288,624.99,REVENUE,REDACTED
Gosport Borough Council,,HOUSING SERVICES,H4-3,,,,GRANTS AND SUBSCRIPTIONS,,,,,25/04/18,103289,624.99,REVENUE,REDACTED
Gosport Borough Council,,HOUSING SERVICES,H4-3,,,,GRANTS AND SUBSCRIPTIONS,,,,,25/04/18,103290,624.99,REVENUE,REDACTED
Gosport Borough Council,,HOUSING SERVICES,H4-3,,,,GRANTS AND SUBSCRIPTIONS,,,,,25/04/18,103291,624.99,REVENUE,REDACTED
Gosport Borough Council,,HOUSING SERVICES,H4-3,,,,GRANTS AND SUBSCRIPTIONS,,,,,25/04/18,103292,624.99,REVENUE,REDACTED
Gosport Borough Council,,HOUSING SERVICES,H4-3,,,,GRANTS AND SUBSCRIPTIONS,,,,,25/04/18,103296,624.99,REVENUE,REDACTED
Gosport Borough Council,,HOUSING SERVICES,H4-3,,,,GRANTS AND SUBSCRIPTIONS,,,,,25/04/18,103294,624.99,REVENUE,REDACTED
Gosport Borough Council,,HOUSING SERVICES,H4-3,,,,GRANTS AND SUBSCRIPTIONS,,,,,25/04/18,103297,624.99,REVENUE,REDACTED
Gosport Borough Council,,HOUSING SERVICES,H4-3,,,,GRANTS AND SUBSCRIPTIONS,,,,,25/04/18,103299,624.99,REVENUE,REDACTED
Gosport Borough Council,,HOUSING SERVICES,H4-3,,,,GRANTS AND SUBSCRIPTIONS,,,,,25/04/18,103305,624.99,REVENUE,REDACTED
Gosport Borough Council,,HOUSING SERVICES,H4-3,,,,GRANTS AND SUBSCRIPTIONS,,,,,25/04/18,103306,624.99,REVENUE,REDACTED
Gosport Borough Council,,HOUSING SERVICES,H4-3,,,,GRANTS AND SUBSCRIPTIONS,,,,,25/04/18,103307,624.99,REVENUE,REDACTED
Gosport Borough Council,,HOUSING SERVICES,H4-3,,,,GRANTS AND SUBSCRIPTIONS,,,,,25/04/18,103312,624.99,REVENUE,REDACTED
Gosport Borough Council,,HOUSING SERVICES,H4-3,,,,GRANTS AND SUBSCRIPTIONS,,,,,25/04/18,103313,624.99,REVENUE,REDACTED
Gosport Borough Council,,HOUSING SERVICES,H4-3,,,,GRANTS AND SUBSCRIPTIONS,,,,,25/04/18,103321,624.99,REVENUE,REDACTED
Gosport Borough Council,,HOUSING SERVICES,H4-3,,,,GRANTS AND SUBSCRIPTIONS,,,,,25/04/18,103320,624.99,REVENUE,REDACTED
Gosport Borough Council,,HOUSING SERVICES,H4-3,,,,GRANTS AND SUBSCRIPTIONS,,,,,25/04/18,103319,624.99,REVENUE,REDACTED
Gosport Borough Council,,HOUSING SERVICES,H4-3,,,,GRANTS AND SUBSCRIPTIONS,,,,,25/04/18,103322,624.99,REVENUE,REDACTED
Gosport Borough Council,,HOUSING SERVICES,H4-3,,,,GRANTS AND SUBSCRIPTIONS,,,,,25/04/18,103327,624.99,REVENUE,REDACTED
Gosport Borough Council,,HOUSING SERVICES,H4-3,,,,GRANTS AND SUBSCRIPTIONS,,,,,25/04/18,103331,624.99,REVENUE,REDACTED
Gosport Borough Council,,HOUSING SERVICES,H4-3,,,,GRANTS AND SUBSCRIPTIONS,,,,,25/04/18,103334,624.99,REVENUE,REDACTED
Gosport Borough Council,,HOUSING SERVICES,H4-3,,,,GRANTS AND SUBSCRIPTIONS,,,,,25/04/18,103335,624.99,REVENUE,REDACTED
Gosport Borough Council,,HOUSING SERVICES,H4-3,,,,GRANTS AND SUBSCRIPTIONS,,,,,25/04/18,103336,624.99,REVENUE,REDACTED
Gosport Borough Council,,HOUSING SERVICES,H4-3,,,,GRANTS AND SUBSCRIPTIONS,,,,,25/04/18,103340,624.99,REVENUE,REDACTED
Gosport Borough Council,,HOUSING SERVICES,H4-3,,,,GRANTS AND SUBSCRIPTIONS,,,,,25/04/18,103341,624.99,REVENUE,REDACTED
Gosport Borough Council,,HOUSING SERVICES,H4-3,,,,GRANTS AND SUBSCRIPTIONS,,,,,25/04/18,103347,624.99,REVENUE,REDACTED
Gosport Borough Council,,HOUSING SERVICES,H4-3,,,,GRANTS AND SUBSCRIPTIONS,,,,,25/04/18,103348,624.99,REVENUE,REDACTED
Gosport Borough Council,,HOUSING SERVICES,H4-3,,,,GRANTS AND SUBSCRIPTIONS,,,,,25/04/18,103353,624.99,REVENUE,REDACTED
Gosport Borough Council,,HOUSING SERVICES,H4-3,,,,GRANTS AND SUBSCRIPTIONS,,,,,25/04/18,103354,624.99,REVENUE,REDACTED
Gosport Borough Council,,HOUSING SERVICES,H4-3,,,,GRANTS AND SUBSCRIPTIONS,,,,,25/04/18,103293,668.52,REVENUE,REDACTED
Gosport Borough Council,,HOUSING SERVICES,H4-3,,,,GRANTS AND SUBSCRIPTIONS,,,,,11/04/18,102962,707.18,REVENUE,REDACTED
Gosport Borough Council,,HOUSING SERVICES,H4-3,,,,GRANTS AND SUBSCRIPTIONS,,,,,25/04/18,103250,712.51,REVENUE,REDACTED
Gosport Borough Council,,HOUSING SERVICES,H4-3,,,,GRANTS AND SUBSCRIPTIONS,,,,,25/04/18,103300,714.23,REVENUE,REDACTED
Gosport Borough Council,,HOUSING SERVICES,H4-3,,,,GRANTS AND SUBSCRIPTIONS,,,,,25/04/18,103258,725.00,REVENUE,REDACTED
Gosport Borough Council,,HOUSING SERVICES,H4-3,,,,GRANTS AND SUBSCRIPTIONS,,,,,25/04/18,103314,734.40,REVENUE,REDACTED
Gosport Borough Council,,HOUSING SERVICES,H4-3,,,,GRANTS AND SUBSCRIPTIONS,,,,,25/04/18,103239,740.00,REVENUE,REDACTED
Gosport Borough Council,,HOUSING SERVICES,H4-3,,,,GRANTS AND SUBSCRIPTIONS,,,,,25/04/18,103232,747.93,REVENUE,David Seymour & Associates
Gosport Borough Council,,HOUSING SERVICES,H4-3,,,,GRANTS AND SUBSCRIPTIONS,,,,,25/04/18,103280,747.93,REVENUE,REDACTED
Gosport Borough Council,,HOUSING SERVICES,H4-3,,,,GRANTS AND SUBSCRIPTIONS,,,,,25/04/18,103310,747.93,REVENUE,REDACTED
Gosport Borough Council,,HOUSING SERVICES,H4-3,,,,GRANTS AND SUBSCRIPTIONS,,,,,25/04/18,103209,750.00,REVENUE,REDACTED
Gosport Borough Council,,HOUSING SERVICES,H4-3,,,,GRANTS AND SUBSCRIPTIONS,,,,,25/04/18,103210,750.00,REVENUE,REDACTED
Gosport Borough Council,,HOUSING SERVICES,H4-3,,,,GRANTS AND SUBSCRIPTIONS,,,,,25/04/18,103228,750.00,REVENUE,David Seymour & Associates
Gosport Borough Council,,HOUSING SERVICES,H4-3,,,,GRANTS AND SUBSCRIPTIONS,,,,,25/04/18,103241,750.00,REVENUE,REDACTED
Gosport Borough Council,,HOUSING SERVICES,H4-3,,,,GRANTS AND SUBSCRIPTIONS,,,,,25/04/18,103251,750.00,REVENUE,REDACTED
Gosport Borough Council,,HOUSING SERVICES,H4-3,,,,GRANTS AND SUBSCRIPTIONS,,,,,25/04/18,103253,750.00,REVENUE,REDACTED
Gosport Borough Council,,HOUSING SERVICES,H4-3,,,,GRANTS AND SUBSCRIPTIONS,,,,,25/04/18,103272,750.00,REVENUE,REDACTED
Gosport Borough Council,,HOUSING SERVICES,H4-3,,,,GRANTS AND SUBSCRIPTIONS,,,,,25/04/18,103275,750.00,REVENUE,Salvation Army Housing Association
Gosport Borough Council,,HOUSING SERVICES,H4-3,,,,GRANTS AND SUBSCRIPTIONS,,,,,25/04/18,103283,750.00,REVENUE,REDACTED
Gosport Borough Council,,HOUSING SERVICES,H4-3,,,,GRANTS AND SUBSCRIPTIONS,,,,,25/04/18,103285,750.00,REVENUE,REDACTED
Gosport Borough Council,,HOUSING SERVICES,H4-3,,,,GRANTS AND SUBSCRIPTIONS,,,,,25/04/18,103286,750.00,REVENUE,REDACTED
Gosport Borough Council,,HOUSING SERVICES,H4-3,,,,GRANTS AND SUBSCRIPTIONS,,,,,25/04/18,103287,750.00,REVENUE,REDACTED
Gosport Borough Council,,HOUSING SERVICES,H4-3,,,,GRANTS AND SUBSCRIPTIONS,,,,,25/04/18,103302,750.00,REVENUE,REDACTED
Gosport Borough Council,,HOUSING SERVICES,H4-3,,,,GRANTS AND SUBSCRIPTIONS,,,,,25/04/18,103301,750.00,REVENUE,REDACTED
Gosport Borough Council,,HOUSING SERVICES,H4-3,,,,GRANTS AND SUBSCRIPTIONS,,,,,25/04/18,103323,750.00,REVENUE,REDACTED
Gosport Borough Council,,HOUSING SERVICES,H4-3,,,,GRANTS AND SUBSCRIPTIONS,,,,,25/04/18,103328,750.00,REVENUE,REDACTED
Gosport Borough Council,,HOUSING SERVICES,H4-3,,,,GRANTS AND SUBSCRIPTIONS,,,,,25/04/18,103333,750.00,REVENUE,REDACTED
Gosport Borough Council,,HOUSING SERVICES,H4-3,,,,GRANTS AND SUBSCRIPTIONS,,,,,25/04/18,103337,750.00,REVENUE,REDACTED
Gosport Borough Council,,HOUSING SERVICES,H4-3,,,,GRANTS AND SUBSCRIPTIONS,,,,,25/04/18,103344,750.00,REVENUE,REDACTED
Gosport Borough Council,,HOUSING SERVICES,H4-3,,,,GRANTS AND SUBSCRIPTIONS,,,,,25/04/18,103345,750.00,REVENUE,REDACTED
Gosport Borough Council,,HOUSING SERVICES,H4-3,,,,GRANTS AND SUBSCRIPTIONS,,,,,25/04/18,103351,750.00,REVENUE,REDACTED
Gosport Borough Council,,HOUSING SERVICES,H4-3,,,,GRANTS AND SUBSCRIPTIONS,,,,,25/04/18,103207,763.15,REVENUE,Stoke Gardens Guest Houses
Gosport Borough Council,,HOUSING SERVICES,H4-3,,,,GRANTS AND SUBSCRIPTIONS,,,,,11/04/18,102961,830.47,REVENUE,REDACTED
Gosport Borough Council,,HOUSING SERVICES,H4-3,,,,GRANTS AND SUBSCRIPTIONS,,,,,25/04/18,103281,850.00,REVENUE,REDACTED
Gosport Borough Council,,HOUSING SERVICES,H4-3,,,,GRANTS AND SUBSCRIPTIONS,,,,,25/04/18,103304,850.00,REVENUE,REDACTED
Gosport Borough Council,,HOUSING SERVICES,H4-3,,,,GRANTS AND SUBSCRIPTIONS,,,,,25/04/18,103240,894.73,REVENUE,REDACTED
Gosport Borough Council,,HOUSING SERVICES,H4-3,,,,GRANTS AND SUBSCRIPTIONS,,,,,25/04/18,103338,900.00,REVENUE,REDACTED
Gosport Borough Council,,HOUSING SERVICES,H4-3,,,,GRANTS AND SUBSCRIPTIONS,,,,,25/04/18,103248,920.41,REVENUE,Fine Cars (Lee-On-Solent) Limited
Gosport Borough Council,,HOUSING SERVICES,H4-3,,,,GRANTS AND SUBSCRIPTIONS,,,,,25/04/18,103257,920.41,REVENUE,REDACTED
Gosport Borough Council,,HOUSING SERVICES,H4-3,,,,GRANTS AND SUBSCRIPTIONS,,,,,25/04/18,103303,950.00,REVENUE,REDACTED
Gosport Borough Council,,HOUSING SERVICES,H4-3,,,,GRANTS AND SUBSCRIPTIONS,,,,,25/04/18,103211,"1,000.00",REVENUE,REDACTED
Gosport Borough Council,,HOUSING SERVICES,H4-3,,,,GRANTS AND SUBSCRIPTIONS,,,,,25/04/18,103220,"1,000.00",REVENUE,David Seymour & Associates
Gosport Borough Council,,HOUSING SERVICES,H4-3,,,,GRANTS AND SUBSCRIPTIONS,,,,,25/04/18,103270,"1,000.00",REVENUE,REDACTED
Gosport Borough Council,,HOUSING SERVICES,H4-3,,,,GRANTS AND SUBSCRIPTIONS,,,,,25/04/18,103343,"1,000.00",REVENUE,REDACTED
Gosport Borough Council,,HOUSING SERVICES,H4-3,,,,GRANTS AND SUBSCRIPTIONS,,,,,19/04/18,100836,960.00,REVENUE,REDACTED
Gosport Borough Council,,HRA,H4-7,,,,GRANTS AND SUBSCRIPTIONS,,,,,19/04/18,100871,424.53,REVENUE,Homebase Ltd
Gosport Borough Council,,HRA,H4-7,,,,GRANTS AND SUBSCRIPTIONS,,,,,19/04/18,100870,466.68,REVENUE,Homebase Ltd
Gosport Borough Council,,CULTURAL AND RELATED SERVICES,H4-11,,,,GRANTS AND SUBSCRIPTIONS,,,,,26/04/18,101027,"1,110.00",REVENUE,Tourism South East
Gosport Borough Council,,SERVICE UNITS ADMIN COSTS,H4-6,,,,GRANTS AND SUBSCRIPTIONS,,,,,12/04/18,100679,"1,032.50",REVENUE,Pstax Consulting Limited
Gosport Borough Council,,SERVICE UNITS ADMIN COSTS,H4-6,,,,GRANTS AND SUBSCRIPTIONS,,,,,12/04/18,100679,"1,032.50",REVENUE,Pstax Consulting Limited
Gosport Borough Council,,SERVICE UNITS ADMIN COSTS,H4-6,,,,GRANTS AND SUBSCRIPTIONS,,,,,19/04/18,100863,495.00,REVENUE,Irrv
Gosport Borough Council,,HOUSING SERVICES,H4-3,,,,GRANTS AND SUBSCRIPTIONS,,,,,23/04/18,100958,"1,250.00",REVENUE,David Seymour & Associates
Gosport Borough Council,,CENTRAL SERVICES TO THE PUBLIC,H4-5,,,,GRANTS AND SUBSCRIPTIONS,,,,,05/04/18,100522,685.00,REVENUE,Age Concern Gosport (Gva)
Gosport Borough Council,,CENTRAL SERVICES TO THE PUBLIC,H4-5,,,,GRANTS AND SUBSCRIPTIONS,,,,,05/04/18,100524,"1,135.00",REVENUE,Solent Sea Rescue Organisation
Gosport Borough Council,,CENTRAL SERVICES TO THE PUBLIC,H4-5,,,,GRANTS AND SUBSCRIPTIONS,,,,,12/04/18,100525,"1,835.00",REVENUE,Gosport Victim Support
Gosport Borough Council,,CENTRAL SERVICES TO THE PUBLIC,H4-5,,,,GRANTS AND SUBSCRIPTIONS,,,,,05/04/18,100523,"2,890.00",REVENUE,Relate Portsmouth & District
Gosport Borough Council,,CENTRAL SERVICES TO THE PUBLIC,H4-5,,,,GRANTS AND SUBSCRIPTIONS,,,,,05/04/18,100526,"34,815.00",REVENUE,Gosport Voluntary Action
Gosport Borough Council,,CENTRAL SERVICES TO THE PUBLIC,H4-5,,,,GRANTS AND SUBSCRIPTIONS,,,,,05/04/18,100531,"50,680.00",REVENUE,Gosport Citizens Advice Bureau
Gosport Borough Council,,HRA,H4-7,,,,GRANTS AND SUBSCRIPTIONS,,,,,12/04/18,100623,"15,750.00",REVENUE,Gosport Citizens Advice Bureau
Gosport Borough Council,,HOUSING SERVICES,H4-3,,,,GRANTS AND SUBSCRIPTIONS,,,,,26/04/18,101050,"1,000.00",REVENUE,David Seymour & Associates
Gosport Borough Council,,HOUSING SERVICES,H4-3,,,,MISCELLANEOUS EXPENSES,,,,,12/04/18,100152,"8,000.00",REVENUE,Locata (Housing Services) Limited
Gosport Borough Council,,CULTURAL AND RELATED SERVICES,H4-11,,,,MISCELLANEOUS EXPENSES,,,,,26/04/18,100990,"2,160.00",REVENUE,Yandell Publishing Limited
Gosport Borough Council,,PLANNING SERVICES,H4-13,,,,MISCELLANEOUS EXPENSES,,,,,12/04/18,100668,540.00,REVENUE,REDACTED
Gosport Borough Council,,PLANNING SERVICES,H4-13,,,,MISCELLANEOUS EXPENSES,,,,,12/04/18,100704,500.00,REVENUE,The Environment Centre (Tec)
Gosport Borough Council,,CORPORATE AND DEMOCRATIC CORE,H4-4,,,,MISCELLANEOUS EXPENSES,,,,,25/04/18,7102,57.89,REVENUE,Edenred
Gosport Borough Council,,SERVICE UNITS ADMIN COSTS,H4-6,,,,MISCELLANEOUS EXPENSES,,,,,05/04/18,100208,"1,782.00",REVENUE,Civica (Uk) Limited
Gosport Borough Council,,CULTURAL AND RELATED SERVICES,H4-11,,,,MISCELLANEOUS EXPENSES,,,,,26/04/18,100985,"2,482.00",REVENUE,Branson Leisure Limited
Gosport Borough Council,,MIRS,H4-9,,,,CAPITAL - SUPPLIES & SERVICES,,,,,12/04/18,100142,"13,798.28",CAPITAL,Psdc Limited
Gosport Borough Council,,PLANNING SERVICES,H4-13,,,,PRIVATE CONTRACTORS,,,,,12/04/18,100670,"10,042.71",REVENUE,Fareham Borough Council
Gosport Borough Council,,SERVICE UNITS ADMIN COSTS,H4-6,,,,PRIVATE CONTRACTORS,,,,,05/04/18,100509,434.35,REVENUE,Biffa Waste Services Limited
Gosport Borough Council,,CENTRAL SERVICES TO THE PUBLIC,H4-5,,,,PRIVATE CONTRACTORS,,,,,19/04/18,100845,"1,479.00",REVENUE,Hampshire County Council
Gosport Borough Council,,PLANNING SERVICES,H4-13,,,,JOINT AUTHORITIES,,,,,19/04/18,100885,874.83,REVENUE,Fareham Borough Council
Gosport Borough Council,,ENV AND REGULATORY SERVICES,H4-12,,,,JOINT AUTHORITIES,,,,,19/04/18,100885,161.46,REVENUE,Fareham Borough Council
Gosport Borough Council,,CENTRAL SERVICES TO THE PUBLIC,H4-5,,,,JOINT AUTHORITIES,,,,,19/04/18,100885,"2,118.61",REVENUE,Fareham Borough Council
Gosport Borough Council,,PLANNING SERVICES,H4-13,,,,JOINT AUTHORITIES,,,,,19/04/18,100885,990.97,REVENUE,Fareham Borough Council
Gosport Borough Council,,PLANNING SERVICES,H4-13,,,,JOINT AUTHORITIES,,,,,19/04/18,100885,"22,331.35",REVENUE,Fareham Borough Council
Gosport Borough Council,,PLANNING SERVICES,H4-13,,,,JOINT AUTHORITIES,,,,,19/04/18,100885,"3,252.56",REVENUE,Fareham Borough Council
Gosport Borough Council,,SERVICE UNITS ADMIN COSTS,H4-6,,,,JOINT AUTHORITIES,,,,,19/04/18,100885,163.16,REVENUE,Fareham Borough Council
Gosport Borough Council,,ENV AND REGULATORY SERVICES,H4-12,,,,PRIVATE CONTRACTORS,,,,,12/04/18,100579,"9,891.57",REVENUE,Enigma Security Solutions Limited
Gosport Borough Council,,ENV AND REGULATORY SERVICES,H4-12,,,,PRIVATE CONTRACTORS,,,,,19/04/18,100597,"9,891.57",REVENUE,Enigma Security Solutions Limited
Gosport Borough Council,,CULTURAL AND RELATED SERVICES,H4-11,,,,PRIVATE CONTRACTORS,,,,,26/04/18,101030,444.00,REVENUE,Taurus Waste Recycling Ltd / Zebra Waste
Gosport Borough Council,,CULTURAL AND RELATED SERVICES,H4-11,,,,PRIVATE CONTRACTORS,,,,,26/04/18,101029,666.00,REVENUE,Taurus Waste Recycling Ltd / Zebra Waste
Gosport Borough Council,,ENV AND REGULATORY SERVICES,H4-12,,,,PRIVATE CONTRACTORS,,,,,12/04/18,100603,"1,850.00",REVENUE,Uk Container Maintenance Limited (Ukcm)
Gosport Borough Council,,HOUSING SERVICES,H4-3,,,,HOUSING BENEFITS,,,,,04/04/18,7066,"19,913.38",REVENUE,Benefit Rent Allowance
Gosport Borough Council,,HOUSING SERVICES,H4-3,,,,HOUSING BENEFITS,,,,,25/04/18,7105,"21,344.84",REVENUE,Benefit Rent Allowance
Gosport Borough Council,,HOUSING SERVICES,H4-3,,,,HOUSING BENEFITS,,,,,25/04/18,7094,"306,609.31",REVENUE,Benefit Rent Allowance
Gosport Borough Council,,HOUSING SERVICES,H4-3,,,,HOUSING BENEFITS,,,,,11/04/18,7080,"990,332.17",REVENUE,Benefit Rent Allowance
Gosport Borough Council,,OTHER OPERATING EXPENDITURE,H4-81,,,,DEPRECIATION,,,,,12/04/18,100703,"69,477.13",REVENUE,Communities & Local Government
Gosport Borough Council,,FINANCING & INVESTMENT I&E,H4-82,,,,LOSS ON IMPAIRMENT OF ASSETS,,,,,11/04/18,7081,"24,700.00",REVENUE,Pwlb
Gosport Borough Council,,FINANCING & INVESTMENT I&E,H4-82,,,,LOSS ON IMPAIRMENT OF ASSETS,,,,,25/04/18,7115,"22,500.00",REVENUE,Pwlb
Gosport Borough Council,,FINANCING & INVESTMENT I&E,H4-82,,,,LOSS ON IMPAIRMENT OF ASSETS,,,,,04/04/18,7069,394.52,REVENUE,Chaps Treasury Management
Gosport Borough Council,,HIGHWAYS ROADS AND TRANSPORT,H4-2,,,,FEES & CHARGES,,,,,26/04/18,101033,11.77,REVENUE,REDACTED
Gosport Borough Council,,HRA,H4-7,,,,REPAIRS AND MAINT OF BUILDINGS,,,,,19/04/18,100693,"468,750.00",REVENUE,Kier Building Maintenance
Gosport Borough Council,,SERVICE UNITS ADMIN COSTS,H4-6,,,,REPAIRS AND MAINT OF BUILDINGS,,,,,26/04/18,101057,"2,892.19",REVENUE,Kier Building Maintenance
Gosport Borough Council,,ENV AND REGULATORY SERVICES,H4-12,,,,PRIVATE CONTRACTORS,,,,,12/04/18,100316,"193,789.62",REVENUE,Urbaser Limited
